[Event "Aktobe Open 2022"]
[Site "Aktobe"]
[Date "2022.06.16"]
[Round "3.5"]
[White "Serikbay, Assel"]
[Black "Volkov, Sergey"]
[Result "1/2-1/2"]
[ECO "D15"]
[WhiteElo "2238"]
[BlackElo "2510"]
[Annotator "TA"]
[PlyCount "66"]
[EventDate "2022.06.14"]
[EventType "swiss"]
[EventCountry "KAZ"]
[SourceTitle "playchess.com"]
[Source "ChessBase"]
[SourceQuality "1"]
[TimeControl "5400+30"]

{[%evp 16,66,17,25,20,28,29,36,31,20,33,10,14,12,27,25,50,41,45,44,85,70,85,80,70,37,27,7,76,78,47,58,139,107,108,108,113,86,80,95,86,12,20,4,4,0,0,0,0,0,0,0,0]} 1. d4 {[%emt 0:00:04]} d5 {[%emt 0:00:08][%cal Bd7d5,Bd5c4][%mdl 32]} 2. Nf3 {[%emt 0:00:07]} Nf6 {[%emt 0:00:19]} 3. c4 {[%emt 0:00:07]} c6 {[%emt 0:00:10]} 4. Nc3 {[%emt 0:00:12]} a6 {[%emt 0:00:37]} 5. a4 {[%emt 0:00:14]} e6 {[%emt 0:00:23]} 6. g3 {[%emt 0:00:18]} dxc4 {[%emt 0:00:12]} 7. Bg2 {[%emt 0:01:16]} c5 {[%emt 0:00:06]} 8. dxc5 {[%emt 0:00:49]} Qxd1+ {[%emt 0:00:08]} 9. Nxd1 {[%emt 0:00:04]} Bd7 {[%emt 0:00:14] D15: Slav Defence: 4 Nc3 a6 and gambit lines after 4 Nc3 dxc4.} 10. Ne5 {[%emt 0:02:35][%csl LRb7,LRc4]} Nc6 {[%emt 0:00:19]} 11. Nxc4 {[%emt 0:04:30]} Bxc5 {[%emt 0:00:15] White is slightly better.} 12. O-O {[%emt 0:03:12]} Nd4 {[%emt 0:04:25]} 13. Nc3 {[%emt 0:02:18]} (13. Bxb7 Nxe2+ 14. Kg2 Ra7 $11) 13... Bc6 {[%emt 0:00:53] [#]} 14. Bf4 $146 {[%emt 0:09:16][%cal Bc1f4,Bf4e5,Be5d6,Bd6a3][%mdl 32]} ({Predecessor:} 14. Be3 Bxg2 15. Kxg2 Ke7 16. Rad1 Rhd8 17. Na5 Rd7 18. Rd3 Rad8 19. Rfd1 Ke8 20. Kf1 {½-½ (53) Salzmann,S (2358)-Jacobs,R (2371) ICCF email 2019}) 14... Nd5 {[%emt 0:09:29]} 15. Be5 $1 {[%emt 0:12:44]} Nb3 {[%emt 0:15:39]} 16. Rad1 {[%emt 0:02:34][%cal Rc3d5]} ({Much worse is} 16. Bxg7 Rg8 17. Be5 Nxa1 18. Rxa1 Ke7 $17) 16... f6 {[%emt 0:00:19]} 17. Bd6 {[%emt 0:04:09][%cal Rc3d5]} ({Worse is} 17. Bxd5 exd5 18. Nxd5 (18. Nd6+ $2 Kd7 $19) 18... Bxd5 19. Rxd5 fxe5 20. Nxe5 Ba7 $17) 17... Nb6 {[%emt 0:19:28]} 18. Nxb6 {[%emt 0:05:10]} Bxb6 {[%emt 0:00:29]} 19. Bxc6+ {[%emt 0:10:42]} bxc6 {[%emt 0:00:30]} 20. Ba3 {[%emt 0:00:50]} Rd8 {[%emt 0:04:37]} 21. Ne4 {[%emt 0:04:12][%cal Bc3e4,Be4d6,Bd6b7][%mdl 32] [#] Threatens to win with Nd6+.} Kf7 {[%emt 0:04:01]} (21... Rd5 $1 $11 {remains equal.}) 22. Nd6+ $16 {[%emt 0:10:47]} Kg6 {[%emt 0:00:08]} 23. Rd3 {[%emt 0:01:54]} Nd4 {[%emt 0:01:30]} ({Black should try} 23... Nc5 $14) 24. Rfd1 {[%emt 0:02:07][%cal Bf1d1,Bd1d3,Bd3d7,Bd7c7,Bc7c6,Bc6a6][%mdl 32] Black must now prevent a5.} e5 {[%emt 0:04:44]} 25. e3 {[%emt 0:09:07]} Ne6 {[%emt 0:02:24]} 26. Nb7 {[%emt 0:05:39] White is more active.} Rxd3 {[%emt 0:03:29]} 27. Rxd3 {[%emt 0:00:01]} Rc8 {[%emt 0:02:14]} 28. a5 {[%emt 0:03:35]} (28. Rd6 $16 Nd8 29. Nxd8 Bxd8 30. Rd7) 28... Bc7 $11 {[%emt 0:01:37] The position is equal.} 29. Rd7 {[%emt 0:03:52] With the idea Re7.} Rb8 {[%emt 0:00:49]} 30. Nc5 {[%emt 0:00:28]} Nxc5 {[%emt 0:00:17]} 31. Rxc7 {[%emt 0:00:07]} Nb3 {[%emt 0:00:08]} 32. Rxc6 {[%emt 0:00:30]} Nxa5 {[%emt 0:00:04]} 33. Rxa6 {[%emt 0:00:32]} Nc4 {[%emt 0:00:04] Weighted Error Value: White=0.10 (very precise) /Black=0.12 (very precise)} 1/2-1/2

[Event "Aktobe Open 2022"]
[Site "Aktobe"]
[Date "2022.06.16"]
[Round "3.6"]
[White "Dauletova, Gulmira"]
[Black "Utegaliyev, Azamat"]
[Result "0-1"]
[ECO "B06"]
[WhiteElo "2220"]
[BlackElo "2463"]
[Annotator "TA"]
[PlyCount "129"]
[EventDate "2022.06.14"]
[EventType "swiss"]
[EventCountry "KAZ"]
[SourceTitle "playchess.com"]
[Source "ChessBase"]
[SourceQuality "1"]
[TimeControl "5400+30"]

{[%evp 9,129,36,51,35,36,36,30,0,8,11,29,8,36,33,32,35,33,37,25,20,54,59,66,54,39,0,51,8,20,9,18,0,0,0,0,-51,0,-35,0,-34,-18,-18,-15,-6,-12,-10,0,-22,0,0,0,0,0,0,0,-10,-10,-7,0,-6,0,-21,-29,-17,-21,-16,0,0,0,0,0,-51,-51,-83,-68,-128,-119,-133,-138,-204,-157,-168,-145,-148,-144,-153,-176,-147,-88,-430,-433,-438,-418,-496,-495,-502,-348,-520,-520,-592,-590,-543,-529,-592,-592,-592,-577,-614,-600,-627,-625,-627,-180,-354,-347,-267,-254,-1134,-1044,-5907,-5397,-5069]} 1. e4 {[%emt 0:00:07]} g6 {[%emt 0:07:08]} 2. d4 {[%emt 0:00:10]} Bg7 {[%emt 0:00:15]} 3. Nc3 {[%emt 0:00:09]} a6 {[%emt 0:03:14]} 4. Be3 {[%emt 0:00:40]} b5 {[%emt 0:00:06]} 5. Qd2 {[%emt 0:05:44]} Bb7 {[%emt 0:00:15]} 6. f3 {[%emt 0:03:01] B06: Modern Defence.} d6 {[%emt 0:00:25]} 7. h4 {[%emt 0:00:23]} Nf6 {[%emt 0:00:12]} 8. Bh6 {[%emt 0:00:47] White has an edge.} Bxh6 {[%emt 0:02:37]} 9. Qxh6 {[%emt 0:00:20] [#]} e5 $146 {[%emt 0:00:14]} ({Predecessor:} 9... b4 10. Nce2 c5 11. d5 Nbd7 12. Nh3 c4 13. Nhf4 Ne5 14. h5 Rg8 15. hxg6 hxg6 {0-1 (43) Eggink,R (2402)-Cardoso Cardoso,J (2380) Chess.com INT 2020}) 10. O-O-O {[%emt 0:26:19] aiming for dxe5.} Qe7 {[%emt 0:01:30]} 11. d5 {[%emt 0:04:09]} Nbd7 {[%emt 0:00:52]} 12. g4 {[%emt 0:02:29]} b4 {[%emt 0:17:57]} 13. Nb1 {[%emt 0:02:47]} Nc5 {[%emt 0:00:54]} 14. h5 {[%emt 0:09:27]} Nfd7 {[%emt 0:01:02][%cal Of7f5]} 15. hxg6 {[%emt 0:08:41]} fxg6 {[%emt 0:00:06]} 16. Nh3 {[%emt 0:01:32]} Qf8 {[%emt 0:04:16]} 17. Ng5 {[%emt 0:03:16]} Nf6 {[%emt 0:10:42]} ({Better is} 17... Ke7 $11) 18. c3 {[%emt 0:16:24]} a5 {[%emt 0:01:45]} 19. Bb5+ {[%emt 0:00:02]} Ke7 $1 {[%emt 0:00:30][%cal Be8e7,Be7f8,Bf8g7][%mdl 32]} 20. Rd2 {[%emt 0:04:03]} Qxh6 {[%emt 0:01:15] Really sharp!} 21. Rxh6 {[%emt 0:00:02]} Kf8 {[%emt 0:00:05]} 22. Rh1 {[%emt 0:03:53]} (22. Rdh2 $11) 22... Bc8 {[%emt 0:03:10]} (22... h5 $15) 23. Rdh2 {[%emt 0:01:55][%cal Rg5h7]} Kg7 {[%emt 0:00:55]} 24. Kc2 {[%emt 0:00:53]} h6 {[%emt 0:16:19][%cal Oc8g4]} 25. Nh3 $1 {[%emt 0:00:28]} Bd7 {[%emt 0:00:52]} 26. Bxd7 {[%emt 0:01:04]} Nfxd7 {[%emt 0:00:05]} 27. Nd2 {[%emt 0:00:22]} Rab8 {[%emt 0:00:41]} 28. Nf2 {[%emt 0:03:45]} a4 {[%emt 0:00:19]} 29. b3 {[%emt 0:01:11]} axb3+ {[%emt 0:05:15]} 30. axb3 {[%emt 0:00:01]} bxc3 {[%emt 0:00:17]} 31. Kxc3 {[%emt 0:00:01]} Ra8 {[%emt 0:00:13][%cal Oc7c6]} 32. Nd3 {[%emt 0:01:41]} Nxd3 {[%emt 0:01:57]} 33. Kxd3 {[%emt 0:00:01]} Nc5+ {[%emt 0:05:05]} (33... Ra2 {keeps more tension.} 34. Rc1 Nc5+ 35. Kc3 Rf8) 34. Kc3 {[%emt 0:00:01]} Ra3 {[%emt 0:00:19]} 35. Kb2 {[%emt 0:00:36]} Nd3+ {[%emt 0:01:18]} 36. Kc3 {[%emt 0:00:01] Threatens to win with Nc4.} Nf4 {[%emt 0:00:34]} 37. Nc4 {[%emt 0:00:05]} Raa8 {[%emt 0:01:05]} 38. b4 {[%emt 0:00:26]} h5 {[%emt 0:01:48]} 39. gxh5 {[%emt 0:00:46]} gxh5 {[%emt 0:00:09][%cal Bg6h5,Bh5h4,Bh4h3][%mdl 32]} 40. Na5 {[%emt 0:00:20]} (40. b5 $11) 40... Kf6 $15 {[%emt 0:00:20]} 41. Kb3 {[%emt 0:00:41]} Rag8 {[%emt 0:01:39]} 42. Rc1 {[%emt 0:00:20] [#]} (42. b5 $15) 42... Rh7 $1 $17 {[%emt 0:00:23]} 43. b5 {[%emt 0:02:10]} Rg3 {[%emt 0:00:54]} 44. Rc3 {[%emt 0:00:02]} (44. Rf1 $17 {was necessary.}) 44... h4 $19 {[%emt 0:00:31]} 45. Nc4 {[%emt 0:00:04]} h3 {[%emt 0:00:33]} 46. b6 {[%emt 0:00:08]} cxb6 {[%emt 0:00:54] And now ...Rg2 would win.} 47. Nxd6 {[%emt 0:00:01]} Rg2 {[%emt 0:00:09]} 48. Rc2 {[%emt 0:00:46]} Rh8 {[%emt 0:04:23]} ({Inferior is} 48... Rd7 49. Nf5 $11) ({Black should try} 48... b5 49. Nxb5 Rhg7) 49. Nf5 $2 {[%emt 0:00:22][%mdl 8192] This move loses the game for White.} (49. Nc4 $17) 49... Rxh2 {[%emt 0:00:19]} 50. Rxh2 {[%emt 0:00:01] [#]} Nxd5 {[%emt 0:00:17][%mdl 4608] Endgame KRN-KRN} 51. Kc4 {[%emt 0:02:01]} (51. Rh1 Ne7) 51... Nf4 {[%emt 0:01:18]} 52. Ne3 {[%emt 0:00:02]} Rg8 {[%emt 0:03:54]} 53. Kb5 {[%emt 0:01:10]} (53. Rh1 $142) 53... Rg3 {[%emt 0:02:53]} 54. Rf2 {[%emt 0:00:08] [#]} Rg2 $1 {[%emt 0:00:50][%mdl 512]} 55. Rf1 {[%emt 0:00:33]} Rb2+ {[%emt 0:00:52]} 56. Kc6 {[%emt 0:00:06]} b5 {[%emt 0:01:07]} 57. Ng4+ {[%emt 0:01:34]} Kg5 {[%emt 0:01:02]} 58. Nxe5 {[%emt 0:00:07]} Kh4 {[%emt 0:00:27]} 59. Ng4 {[%emt 0:00:30]} Kg3 {[%emt 0:00:14] Inhibits Nf2.} 60. e5 {[%emt 0:01:08]} Rb3 $2 {[%emt 0:00:17]} (60... Re2 61. Kd6 b4) 61. Rg1+ $2 {[%emt 0:00:31]} (61. Nf2) 61... Kxf3 {[%emt 0:00:15]} 62. Nh2+ {[%emt 0:00:10]} Ke4 {[%emt 0:00:43]} 63. Rg5 $2 {[%emt 0:00:47]} (63. Re1+ Kf5 64. Rf1) 63... Rb2 {[%emt 0:00:26]} 64. Nf1 {[%emt 0:00:06]} Rg2 {[%emt 0:01:30]} 65. Rg3 {[%emt 0:01:30] Weighted Error Value: White=0.51/Black=0.22 (precise)} 0-1

[Event "Aktobe Open 2022"]
[Site "Aktobe"]
[Date "2022.06.16"]
[Round "3.7"]
[White "Agmanov, Zhandos"]
[Black "Bekturov, Tamerlan"]
[Result "1-0"]
[ECO "B51"]
[WhiteElo "2420"]
[BlackElo "2241"]
[Annotator "TA"]
[PlyCount "77"]
[EventDate "2022.06.14"]
[EventType "swiss"]
[EventCountry "KAZ"]
[SourceTitle "playchess.com"]
[Source "ChessBase"]
[SourceQuality "1"]
[TimeControl "5400+30"]

{[%evp 9,77,7,22,15,19,28,39,31,41,36,41,36,33,31,34,29,54,10,68,44,103,79,91,103,230,255,250,237,237,230,272,279,364,225,221,218,245,260,264,226,234,228,262,206,200,210,300,130,127,162,122,131,479,472,647,647,2705,2654,1612,989,985,956,29983,29984,29984,29985,29986,29987,29987,29988]} 1. e4 {[%emt 0:00:10] ChessBase II} c5 {[%emt 0:06:15]} 2. Nf3 {[%emt 0:01:02]} d6 {[%emt 0:00:09]} 3. Bb5+ {[%emt 0:00:46]} Nd7 {[%emt 0:05:21]} 4. d4 {[%emt 0:00:51]} cxd4 {[%emt 0:00:38]} 5. Nxd4 {[%emt 0:00:15]} a6 {[%emt 0:02:41]} 6. Bd3 {[%emt 0:09:10] B51: Sicilian: Moscow Variation (3 Bb5+) without 3...Bd7.} Ngf6 {[%emt 0:04:08]} 7. c4 {[%emt 0:00:06]} e6 {[%emt 0:06:53]} 8. O-O {[%emt 0:01:19] White is slightly better.} b6 {[%emt 0:02:15]} 9. Nc3 {[%emt 0:04:51]} Bb7 {[%emt 0:00:32]} 10. Qe2 {[%emt 0:04:05]} Be7 {[%emt 0:04:47]} 11. f4 {[%emt 0:06:58]} O-O {[%emt 0:07:11]} 12. Kh1 {[%emt 0:05:21]} g6 {[%emt 0:12:15] [#]} 13. Bd2 $146 {[%emt 0:13:16]} ({Predecessor:} 13. f5 exf5 14. exf5 Ne5 15. Bg5 Re8 16. Rae1 Nh5 17. fxg6 hxg6 18. Bxe7 Qxe7 19. Nf5 Qd7 20. Nh6+ Kg7 21. Nf5+ Kg8 22. Nh6+ Kg7 23. Nf5+ Kg8 {½-½ (24) Xu,Y (2477)-Koneru,H (2616) China 2008 EXT 2017 [ChessBase II]}) 13... Qb8 {[%emt 0:16:07]} (13... Re8 $11) 14. Rae1 {[%emt 0:02:05] White is more active.} Nc5 {[%emt 0:02:00]} ({Better is} 14... Re8 $14) 15. Bc2 {[%emt 0:02:21]} e5 {[%emt 0:04:33]} 16. Nf3 {[%emt 0:05:44]} b5 {[%emt 0:02:17]} (16... exf4 $16 17. Bxf4 Re8) 17. fxe5 $18 {[%emt 0:10:15]} (17. cxb5 axb5 18. a3 (18. Qxb5 Ba6 $17) 18... Rc8 $11) 17... dxe5 {[%emt 0:00:08] [#]} 18. b4 $1 {[%emt 0:00:08]} (18. cxb5 axb5 19. a3 (19. Qxb5 Ba6 $17) 19... Rc8 $11) 18... Ne6 {[%emt 0:03:12]} 19. Nd5 {[%emt 0:09:36]} (19. cxb5 axb5 20. Qxb5 Ba6 21. Qxb8 Rfxb8 $11) 19... Bd8 {[%emt 0:05:20]} 20. Bc3 {[%emt 0:04:04]} Nf4 {[%emt 0:01:25]} 21. Nxf4 {[%emt 0:03:50]} (21. Bxe5 Nxe2 22. Bxb8 Rxb8 $15) 21... exf4 {[%emt 0:02:07]} 22. Be5 {[%emt 0:01:52]} Qc8 {[%emt 0:00:51]} 23. c5 {[%emt 0:00:07]} (23. cxb5 $6 axb5 24. Bb3 (24. Qxb5 Ba6 $17) 24... Bxe4 25. Bxf4 (25. Qxb5 Qc6 $16) 25... Re8) (23. Bxf4 Qxc4 24. Qxc4 bxc4 $14) 23... a5 {[%emt 0:04:30]} 24. a3 {[%emt 0:00:35]} (24. Qxb5 Ba6 25. Qa4 Bxf1 26. Rxf1 axb4 27. Qxb4 Be7 28. Bxf6 (28. Qc4 $2 Ng4 $19) 28... Bxf6 $15) 24... axb4 {[%emt 0:00:12]} 25. axb4 {[%emt 0:00:13]} Ra2 {[%emt 0:00:17][%cal Ob7e4]} 26. Ra1 {[%emt 0:04:24]} ({And not} 26. Bxf4 Bxe4 27. Nd4 (27. Bxe4 Rxe2 28. Rxe2 Nxe4 $17) 27... Bxc2 28. Nxc2 Qf5 $11) 26... Rxa1 {[%emt 0:04:04]} 27. Rxa1 {[%emt 0:00:07]} ({Don't take} 27. Bxa1 Qa8 $16) 27... Qe6 {[%emt 0:02:05]} (27... Ng4 $142) 28. Qxb5 {[%emt 0:06:30]} (28. Ra7 $18 Bc6 29. Bd6 Nxe4 30. Nd4) 28... Bxe4 $16 {[%emt 0:00:18]} 29. Bxe4 {[%emt 0:01:24]} Nxe4 {[%emt 0:00:06]} 30. Qe2 {[%emt 0:02:06] Inhibits Nf2+.} Qf5 {[%emt 0:02:07][%mdl 8192] [#]} (30... Qd5 $16 {is more resistant.} 31. Qa2 Qd3) 31. Re1 $18 {[%emt 0:00:18][%cal Ba1e1,Be1e8,Be8d8][%mdl 32]} Nf6 {[%emt 0:00:33]} 32. Bd6 {[%emt 0:02:01]} Re8 {[%emt 0:00:35]} 33. Qxe8+ {[%emt 0:00:05]} Nxe8 {[%emt 0:00:03]} 34. Rxe8+ {[%emt 0:00:03]} Kg7 {[%emt 0:00:08]} 35. Rxd8 {[%emt 0:00:03]} g5 {[%emt 0:01:10]} 36. c6 {[%emt 0:00:39][%cal Bc5c6,Bc6c7][%mdl 32] White mates.} Qb1+ {[%emt 0:00:38]} 37. Ng1 {[%emt 0:00:01]} f3 {[%emt 0:00:37]} 38. gxf3 {[%emt 0:00:01]} g4 {[%emt 0:00:14]} 39. c7 {[%emt 0:00:26] Weighted Error Value: White=0.17 (very precise) /Black=0.61} 1-0

[Event "Aktobe Open 2022"]
[Site "Aktobe"]
[Date "2022.06.16"]
[Round "3.9"]
[White "Nurgaliyeva, Zarina"]
[Black "Kostenko, Petr"]
[Result "0-1"]
[ECO "C01"]
[WhiteElo "1935"]
[BlackElo "2416"]
[Annotator "TA"]
[PlyCount "72"]
[EventDate "2022.06.14"]
[EventType "swiss"]
[EventCountry "KAZ"]
[SourceTitle "playchess.com"]
[Source "ChessBase"]
[SourceQuality "1"]
[TimeControl "5400+30"]

{[%evp 11,72,0,0,-6,36,35,38,33,31,22,26,-18,-8,-11,-3,-25,-10,-44,0,-39,-8,10,0,-64,-63,-65,-58,-55,-19,-22,-20,-29,-27,-56,-60,-60,-69,-95,-96,-101,-103,-95,-104,-143,-154,-309,-302,-307,-311,-304,-311,-311,-311,-394,-279,-635,-652,-646,-288,-614,-400,-386,-385]} 1. e4 {[%emt 0:01:43]} e6 {[%emt 0:00:46]} 2. d4 {[%emt 0:00:22]} d5 {[%emt 0:00:09]} 3. exd5 {[%emt 0:00:20]} exd5 {[%emt 0:00:06]} 4. Nf3 {[%emt 0:00:04]} Bd6 {[%emt 0:02:05]} 5. c4 {[%emt 0:05:19]} Nf6 {[%emt 0:00:18]} 6. c5 {[%emt 0:00:28]} Be7 {[%emt 0:00:06]} 7. Qa4+ {[%emt 0:00:29] C01: French: Exchange Variation.} c6 {[%emt 0:00:41]} (7... Bd7 $5 {[%cal Rd7a4]} 8. Bb5 O-O $11) 8. Bd3 {[%emt 0:01:32]} O-O {[%emt 0:05:43]} 9. O-O {[%emt 0:00:49] White is slightly better.} Ne4 {[%emt 0:09:39]} 10. Qc2 {[%emt 0:15:46]} f5 {[%emt 0:02:19] [#]} 11. Ne5 $146 {[%emt 0:06:18]} ({Predecessor:} 11. b4 Nd7 12. a4 Qe8 13. Nbd2 g5 14. Bb2 a5 15. b5 g4 16. Ne1 Qh5 17. f3 {½-½ (36) Kasparian,G-Botvinnik,M Moscow 1952}) 11... Nd7 {[%emt 0:04:17] With the idea ...Nxe5.} 12. Nxd7 {[%emt 0:05:04]} Qxd7 {[%emt 0:04:36]} 13. f3 {[%emt 0:06:52]} Ng5 {[%emt 0:03:54]} 14. Bf4 {[%emt 0:04:04]} b6 {[%emt 0:00:19]} 15. b4 {[%emt 0:03:08]} bxc5 {[%emt 0:05:15]} (15... Bf6 $5 {[%cal Rf6d4]} 16. Qf2 g6 $15) 16. bxc5 {[%emt 0:01:20]} Bf6 {[%emt 0:00:28]} 17. Be5 {[%emt 0:01:44]} ({Better is} 17. Qf2 $11) 17... Bxe5 $15 {[%emt 0:00:13]} 18. dxe5 {[%emt 0:00:06]} Qe7 $36 {[%emt 0:00:40][%mdl 2048] Black has the initiative.} 19. Re1 {[%emt 0:04:21]} Ne6 {[%emt 0:04:43]} 20. Bxf5 {[%emt 0:01:21]} Qxc5+ {[%emt 0:04:00]} 21. Qxc5 {[%emt 0:05:47]} Nxc5 {[%emt 0:00:04]} 22. Bxc8 {[%emt 0:00:36]} Raxc8 {[%emt 0:00:05]} 23. Nd2 {[%emt 0:01:00]} Ne6 {[%emt 0:04:30]} 24. Nb3 {[%emt 0:05:28]} c5 {[%emt 0:00:08][%cal Bc6c5,Bc5c4,Bc4c3,Bc3d2][%mdl 32] aiming for ...c4.} 25. Red1 {[%emt 0:01:08]} Rfd8 {[%emt 0:00:17] White must now prevent ...d4.} 26. Rac1 {[%emt 0:01:06]} g5 {[%emt 0:00:10]} 27. Na5 {[%emt 0:04:16] [#]} Rc7 {[%emt 0:00:24] Prevents Nb7.} 28. Rb1 $2 {[%emt 0:02:14] Now White is beyond hope.} (28. Nb3 $17 {keeps fighting.}) 28... c4 $19 {[%emt 0:03:46]} 29. Nb7 {[%emt 0:00:40]} Rb8 {[%emt 0:00:33]} 30. Nd6 {[%emt 0:00:10]} Rxb1 {[%emt 0:00:06]} 31. Rxb1 {[%emt 0:00:04][%mdl 4096] Endgame KRN-KRN} c3 {[%emt 0:00:55]} 32. Kf2 {[%emt 0:02:56]} ({Much worse is} 32. Rb8+ Kg7 33. Rb1 (33. Ne8+ $2 Kf7 $19) 33... c2 $19) 32... d4 {[%emt 0:00:39][%cal Bd5d4,Bd4d3][%mdl 32]} 33. Ke1 $2 {[%emt 0:01:10]} (33. Rb8+ Nf8 34. Rb1) 33... d3 {[%emt 0:03:41] [#] ( -> ...d2+)} 34. Ne4 {[%emt 0:00:17]} Kg7 {[%emt 0:02:44]} (34... c2 $142 35. Rc1 Nf4) 35. Kf2 $2 {[%emt 0:01:11]} (35. Rc1 d2+ 36. Nxd2 cxd2+ 37. Kxd2) 35... d2 {[%emt 0:00:28]} 36. Nxd2 {[%emt 0:01:04]} cxd2 {[%emt 0:00:05] Weighted Error Value: White=0.51/Black=0.28 (precise)} 0-1

[Event "Aktobe Open 2022"]
[Site "Aktobe"]
[Date "2022.06.16"]
[Round "3.10"]
[White "Katenov, Aibek"]
[Black "Afanasiev, Nikita"]
[Result "1-0"]
[ECO "E64"]
[WhiteElo "2161"]
[BlackElo "2567"]
[Annotator "TA"]
[PlyCount "93"]
[EventDate "2022.06.14"]
[EventType "swiss"]
[EventCountry "KAZ"]
[SourceTitle "playchess.com"]
[Source "ChessBase"]
[SourceQuality "1"]
[TimeControl "5400+30"]

{[%evp 13,93,18,21,12,22,10,36,33,31,30,46,31,72,33,50,42,58,19,57,44,139,31,31,33,33,32,44,53,156,172,187,154,159,174,181,189,197,176,214,169,189,181,447,439,429,359,354,358,351,349,343,343,315,267,427,248,265,266,267,244,259,237,297,248,804,341,328,314,402,400,556,514,491,485,978,902,29995,29996,29996,29986,29997,29998]} 1. d4 {[%emt 0:04:51]} g6 {[%emt 0:02:57]} 2. c4 {[%emt 0:00:14]} Nf6 {[%emt 0:01:12]} 3. g3 {[%emt 0:00:07]} c5 {[%emt 0:00:11]} 4. d5 {[%emt 0:00:07]} Bg7 {[%emt 0:00:22]} 5. Nc3 {[%emt 0:00:08]} O-O {[%emt 0:00:30]} 6. Bg2 {[%emt 0:00:02]} e6 {[%emt 0:00:25] is recently more successful than 6...d6.} 7. Nf3 {[%emt 0:00:04][%cal Bg1f3,Bf3e1,Be1c2,Bc2e3][%mdl 32]} d6 {[%emt 0:00:44]} 8. O-O {[%emt 0:00:02] E64: King's Indian: Fianchetto: 6...c5 7 d5.} Re8 {[%emt 0:00:42] [#]} 9. Bf4 $146 {[%emt 0:01:14]} ({Predecessor:} 9. Re1 Na6 10. h3 exd5 11. cxd5 Ne4 12. Nxe4 Rxe4 13. Nd2 Re7 14. a4 Nb4 15. Nc4 b6 {1-0 (61) Lagarde,M (2625)-Warmerdam,M (2562) Athens 2021}) 9... e5 {[%emt 0:02:01]} 10. Bd2 {[%emt 0:02:28] White is slightly better.} e4 {[%emt 0:00:40]} 11. Ne1 {[%emt 0:00:47]} h6 {[%emt 0:06:11]} 12. Nc2 {[%emt 0:17:05]} a6 {[%emt 0:01:11]} 13. Ne3 {[%emt 0:05:16]} (13. Qc1 $5 {[%cal Rd2h6]}) 13... Nbd7 {[%emt 0:00:20][%cal Ob7b5]} 14. Qc2 {[%emt 0:08:02]} Qe7 {[%emt 0:00:55]} 15. a3 {[%emt 0:00:01]} Nf8 {[%emt 0:05:57]} 16. b4 {[%emt 0:05:25]} N6d7 {[%emt 0:00:35]} ({Better is} 16... N8d7 $14) 17. Nxe4 {[%emt 0:07:27]} Bxa1 $14 {[%emt 0:00:58]} 18. Rxa1 {[%emt 0:00:01]} f5 {[%emt 0:00:10] Against Ng4} 19. Nc3 {[%emt 0:03:26][%cal Be4c3,Bc3a4,Ba4b6][%mdl 1056] White has compensation.} Qg7 {[%emt 0:01:58]} 20. Rb1 {[%emt 0:03:52]} Nh7 {[%emt 0:06:21] Black is on the road to losing.} (20... b6 $14) 21. Na4 $16 {[%emt 0:02:55] bxc5 is the strong threat.} b6 {[%emt 0:02:30]} 22. Bc3 {[%emt 0:12:10]} Qf7 {[%emt 0:06:21] [#]} 23. Nxb6 $1 {[%emt 0:02:43][%mdl 576] Remove Defender, Deflection. White is more active.} Nxb6 {[%emt 0:00:11]} 24. bxc5 {[%emt 0:00:01][%mdl 64] Discovered Attack} Nd7 {[%emt 0:02:54]} (24... Rxe3 $2 25. fxe3 Nd7 26. cxd6 $18) 25. cxd6 {[%emt 0:00:01]} Ng5 {[%emt 0:14:19]} 26. Bd4 {[%emt 0:04:19]} Kh7 {[%emt 0:02:54] [#]} 27. h4 $1 {[%emt 0:07:33][%cal Bh2h4,Bh4g5][%mdl 32]} f4 $2 {[%emt 0:08:31]} (27... Ne4 28. c5 Rb8) 28. hxg5 {[%emt 0:00:54]} fxe3 {[%emt 0:00:04]} 29. fxe3 {[%emt 0:00:14]} Qf5 {[%emt 0:01:07]} 30. Qxf5 {[%emt 0:04:05] The board is on fire.} gxf5 {[%emt 0:00:01]} 31. gxh6 {[%emt 0:00:36]} (31. c5 Nxc5 32. Bxc5 hxg5 $18) 31... Kxh6 {[%emt 0:08:23]} 32. c5 {[%emt 0:00:05]} Kg5 {[%emt 0:01:42]} 33. c6 {[%emt 0:00:26] Strongly threatening e4.} Ne5 {[%emt 0:08:08]} (33... Nf6 {is a better defense.} 34. Rb6 (34. d7 Bxd7 35. cxd7 Nxd7 $18) 34... Rf8) 34. d7 {[%emt 0:04:17]} ({Less strong is} 34. Bxe5 Rxe5 35. Kf2 (35. d7 Bxd7 36. Kf2 Bxc6 $14) 35... Re8 $18) (34. Rf1 $142) 34... Nxd7 {[%emt 0:02:11]} 35. cxd7 {[%emt 0:00:45]} Bxd7 {[%emt 0:00:03]} 36. Rb7 {[%emt 0:00:11]} Bb5 {[%emt 0:00:11]} 37. Bf3 {[%emt 0:00:31]} Rac8 {[%emt 0:03:03]} 38. Kf2 {[%emt 0:00:26]} Rc2 $2 {[%emt 0:00:37]} (38... Rg8 39. Be5 Rce8) 39. g4 {[%emt 0:02:57]} (39. Rb6 $142) 39... fxg4 $18 {[%emt 0:00:25]} 40. Rg7+ {[%emt 0:00:06]} Kh6 {[%emt 0:00:06]} 41. Rxg4 {[%emt 0:00:12]} Ra2 {[%emt 0:03:49]} 42. e4 {[%emt 0:00:25][%cal Be3e4,Be4e5,Be5e6][%mdl 32]} Rxa3 {[%emt 0:00:20]} 43. e5 {[%emt 0:00:04]} Ra2 {[%emt 0:02:36]} (43... Bc4 $142 44. Be3+ Rxe3) 44. e6 {[%emt 0:00:16] White wants to mate with Be3+.} Kh7 {[%emt 0:00:26]} 45. Be4+ {[%emt 0:01:39] White mates.} Kh6 {[%emt 0:00:05]} 46. Be3+ {[%emt 0:00:23] A strong pair of Bishops.} Kh5 {[%emt 0:00:18]} 47. Kg3 {[%emt 0:00:36] Weighted Error Value: White=0.26 (precise) /Black=0.49} 1-0